[Event "44th Chess Olympiad Open 2022"]
[Site "Chennai"]
[Date "2022.08.08"]
[Round "10.53"]
[White "Bwalya, Gillan"]
[Black "Mwale, Joseph"]
[Result "1/2-1/2"]
[WhiteElo "2396"]
[BlackElo "2131"]
[Annotator "RC"]
[PlyCount "176"]
[EventDate "2022.??.??"]
[TimeControl "60"]

1. e4 {[%emt 0:00:06]} e5 {[%emt 0:00:07]} 2. Nf3 {[%emt 0:00:21]} Nf6 {
[%emt 0:00:35]} 3. Nxe5 {[%emt 0:00:59]} d6 {[%emt 0:00:03]} 4. Nf3 {[%emt 0:
00:00]} Nxe4 {[%emt 0:00:03]} 5. Nc3 {[%emt 0:00:27]} Nxc3 {[%emt 0:00:07]} 6.
dxc3 {[%emt 0:00:11]} Be7 {[%emt 0:02:21]} 7. Be3 {[%emt 0:05:17]} Nc6 {
[%emt 0:01:30]} 8. Qd2 {[%emt 0:00:24]} O-O {[%emt 0:01:15]} 9. O-O-O {[%emt 0:
00:00]} Bf5 {[%emt 0:08:43]} 10. Rg1 {[%emt 0:00:22]} Qd7 {[%emt 0:10:48]} 11.
h3 {[%emt 0:00:21]} Rae8 {[%emt 0:09:23]} 12. Kb1 {[%emt 0:01:49]} a6 {[%emt 0:
00:00]} 13. g4 {[%emt 0:00:53]} Be4 {[%emt 0:00:13]} 14. Ne1 {[%emt 0:00:42]}
Ne5 {[%emt 0:01:45]} 15. Be2 {[%emt 0:01:28]} Qc6 {[%emt 0:00:21]} 16. g5 {
[%emt 0:01:10]} Nc4 {[%emt 0:03:42]} 17. Bxc4 {[%emt 0:02:31]} Qxc4 {[%emt 0:
00:00]} 18. h4 {[%emt 0:01:38]} Bg6 {[%emt 0:04:04]} 19. Ng2 {[%emt 0:00:12]}
Bh5 {[%emt 0:29:54]} 20. Rde1 {[%emt 0:00:34]} d5 {[%emt 0:00:45]} 21. Nf4 {
[%emt 0:04:13]} Bf3 {[%emt 0:00:06]} 22. Rg3 {[%emt 0:01:08]} Be4 {[%emt 0:00:
00]} 23. f3 {[%emt 0:01:00]} Bf5 {[%emt 0:00:17]} 24. b3 {[%emt 0:01:22]} Qc6 {
[%emt 0:01:58]} 25. Nxd5 {[%emt 0:00:19]} Bd6 {[%emt 0:01:10]} 26. Rgg1 {
[%emt 0:01:45]} Re5 {[%emt 0:02:58]} 27. c4 {[%emt 0:00:39]} Rfe8 {[%emt 0:00:
00]} 28. Bf4 {[%emt 0:01:52]} R5e6 {[%emt 0:04:58]} 29. Bxd6 {[%emt 0:01:26]}
Qxd6 {[%emt 0:00:38]} 30. Rxe6 {[%emt 0:03:09]} Rxe6 {[%emt 0:00:47]} 31. Rd1 {
[%emt 0:00:40]} Kf8 {[%emt 0:09:41]} 32. Qf2 {[%emt 0:01:07]} c6 {[%emt 0:00:
00]} 33. c5 {[%emt 0:03:51]} Qe5 {[%emt 0:00:28]} 34. Nb4 {[%emt 0:02:57]} g6 {
[%emt 0:00:35]} 35. Nd3 {[%emt 0:02:17]} Qe3 {[%emt 0:00:29]} 36. Qg3 {[%emt 0:
00:00]} Bxd3 {[%emt 0:00:31]} 37. Rxd3 {[%emt 0:00:26]} Qxc5 {[%emt 0:00:24]}
38. Rd8+ {[%emt 0:10:32]} Kg7 {[%emt 0:00:14]} 39. Qb8 {[%emt 0:02:06]} Re1+ {
[%emt 0:00:28]} 40. Kb2 {[%emt 0:00:04]} Qe5+ {[%emt 0:00:41]} 41. Qxe5+ {
[%emt 0:30:06]} Rxe5 {[%emt 0:30:03]} 42. Rd7 {[%emt 0:00:15]} b5 {[%emt 0:00:
00]} 43. Ra7 {[%emt 0:00:00]} Rf5 {[%emt 0:00:00]} 44. Rxa6 {[%emt 0:00:00]}
Rxf3 {[%emt 0:00:00]} 45. Rxc6 {[%emt 0:00:00]} Rf4 {[%emt 0:00:00]} 46. c4 {
[%emt 0:00:00]} b4 {[%emt 0:00:13]} 47. a3 {[%emt 0:00:00]} Rf2+ {[%emt 0:00:
00]} 48. Ka1 {[%emt 0:00:00]} Rf1+ {[%emt 0:00:09]} 49. Kb2 {[%emt 0:00:00]}
Rf2+ {[%emt 0:00:03]} 50. Kb1 {[%emt 0:00:00]} Rf1+ {[%emt 0:03:00]} 51. Kc2 {
[%emt 0:00:00]} Rf2+ {[%emt 0:00:14]} 52. Kd3 {[%emt 0:00:00]} Rf3+ {[%emt 0:
00:00]} 53. Kd4 {[%emt 0:00:00]} Rxb3 {[%emt 0:00:40]} 54. axb4 {[%emt 0:00:00]
} Rxb4 {[%emt 0:00:03]} 55. Rf6 {[%emt 0:00:00]} h6 {[%emt 0:00:42]} 56. Rf3 {
[%emt 0:00:00]} hxg5 {[%emt 0:00:41]} 57. hxg5 {[%emt 0:00:00]} Rb1 {[%emt 0:
00:00]} 58. c5 {[%emt 0:00:00]} Kf8 {[%emt 0:00:10]} 59. Re3 {[%emt 0:00:00]}
Rd1+ {[%emt 0:00:47]} 60. Kc4 {[%emt 0:00:00]} Rg1 {[%emt 0:00:18]} 61. c6 {
[%emt 0:00:00]} Rc1+ {[%emt 0:00:23]} 62. Kd5 {[%emt 0:00:00]} f6 {[%emt 0:00:
00]} 63. gxf6 {[%emt 0:00:00]} Kf7 {[%emt 0:00:01]} 64. Rf3 {[%emt 0:00:00]}
Rd1+ {[%emt 0:00:22]} 65. Kc5 {[%emt 0:00:00]} Rc1+ {[%emt 0:00:04]} 66. Kb6 {
[%emt 0:00:00]} Rb1+ {[%emt 0:00:07]} 67. Ka7 {[%emt 0:00:00]} Rc1 {[%emt 0:00:
00]} 68. Kb7 {[%emt 0:00:00]} Rb1+ {[%emt 0:00:44]} 69. Kc8 {[%emt 0:00:00]}
Rc1 {[%emt 0:00:12]} 70. c7 {[%emt 0:00:00]} Rc2 {[%emt 0:00:17]} 71. Rf4 {
[%emt 0:00:00]} Rc1 {[%emt 0:00:13]} 72. Kd7 {[%emt 0:00:00]} Rd1+ {[%emt 0:00:
00]} 73. Kc6 {[%emt 0:00:00]} Rc1+ {[%emt 0:00:10]} 74. Kd6 {[%emt 0:00:00]}
Rc2 {[%emt 0:00:30]} 75. Rf1 {[%emt 0:00:00]} Rd2+ {[%emt 0:00:11]} 76. Kc6 {
[%emt 0:00:00]} Rc2+ {[%emt 0:00:03]} 77. Kb7 {[%emt 0:00:00]} Rb2+ {[%emt 0:
00:00]} 78. Kc8 {[%emt 0:00:00]} Rc2 {[%emt 0:00:06]} 79. Rd1 {[%emt 0:00:00]}
Kxf6 {[%emt 0:00:17]} 80. Kd7 {[%emt 0:00:00]} Kf5 {[%emt 0:01:12]} 81. c8=Q {
[%emt 0:00:00]} Rxc8 {[%emt 0:00:04]} 82. Kxc8 {[%emt 0:00:00]} g5 {[%emt 0:00:
00]} 83. Kd7 {[%emt 0:00:00]} g4 {[%emt 0:01:26]} 84. Rg1 {[%emt 0:00:00]} Kf4
{[%emt 0:00:06]} 85. Ke6 {[%emt 0:00:00]} g3 {[%emt 0:00:36]} 86. Rf1+ {
[%emt 0:00:00]} Ke3 {[%emt 0:00:10]} 87. Kf5 {[%emt 0:00:00]} g2 {[%emt 0:00:
00]} 88. Ra1 {[%emt 0:00:00]} Kf2 {[%emt 0:00:04]} 1/2-1/2

[Event "44th Chess Olympiad Open 2022"]
[Site "Chennai"]
[Date "2022.08.08"]
[Round "10.53"]
[White "Lungu, Nase"]
[Black "Matola Ernest"]
[Result "1-0"]
[WhiteElo "2216"]
[BlackElo "1964"]
[Annotator "NA RC"]
[PlyCount "99"]
[EventDate "2022.??.??"]
[TimeControl "60"]

1. c4 {[%emt 0:00:03]} e5 {[%emt 0:00:24]} 2. Nc3 {[%emt 0:00:12]} Nc6 {
[%emt 0:00:26]} 3. g3 {[%emt 0:00:33]} g6 {[%emt 0:00:34]} 4. Bg2 {[%emt 0:00:
00]} Bg7 {[%emt 0:00:21]} 5. Rb1 {[%emt 0:00:13]} a5 {[%emt 0:00:38]} 6. a3 {
[%emt 0:00:05]} Nf6 {[%emt 0:00:25]} 7. b4 {[%emt 0:00:14]} O-O {[%emt 0:01:02]
} 8. b5 {[%emt 0:00:08]} Nd4 {[%emt 0:01:26]} 9. e3 {[%emt 0:00:07]} Nf5 {
[%emt 0:00:34]} 10. Nge2 {[%emt 0:00:16]} d6 {[%emt 0:01:05]} 11. O-O {[%emt 0:
00:00]} Re8 {[%emt 0:00:36]} 12. d3 {[%emt 0:00:34]} h5 {[%emt 0:03:57]} 13. e4
{[%emt 0:00:11]} Ne7 {[%emt 0:01:48]} 14. h3 {[%emt 0:00:09]} h4 {[%emt 0:00:
00]} 15. g4 {[%emt 0:00:24]} Nh7 {[%emt 0:00:20]} 16. f4 {[%emt 0:00:11]} exf4
{[%emt 0:00:33]} 17. Bxf4 {[%emt 0:00:14]} g5 {[%emt 0:00:29]} 18. Be3 {
[%emt 0:00:35]} f6 {[%emt 0:00:44]} 19. Qd2 {[%emt 0:01:35]} c6 {[%emt 0:03:35]
} 20. Na4 {[%emt 0:01:36]} c5 {[%emt 0:02:49]} 21. d4 {[%emt 0:01:09]} cxd4 {
[%emt 0:03:37]} 22. Nxd4 {[%emt 0:05:47]} Qc7 {[%emt 0:03:59]} 23. Rbc1 {
[%emt 0:00:36]} b6 {[%emt 0:02:05]} 24. e5 {[%emt 0:03:54]} dxe5 {[%emt 0:00:
00]} 25. Bxa8 {[%emt 0:02:08]} exd4 {[%emt 0:00:24]} 26. Bxd4 {[%emt 0:00:13]}
Bxg4 {[%emt 0:01:11]} 27. Bxb6 {[%emt 0:00:43]} Qc8 {[%emt 0:05:33]} 28. hxg4 {
[%emt 0:03:43]} Qxa8 {[%emt 0:00:20]} 29. Rce1 {[%emt 0:01:29]} Qc8 {[%emt 0:
00:00]} 30. Re4 {[%emt 0:01:37]} Nf8 {[%emt 0:01:30]} 31. Qd6 {[%emt 0:12:03]}
Neg6 {[%emt 0:02:00]} 32. Rxe8 {[%emt 0:05:51]} Qxe8 {[%emt 0:00:06]} 33. Nc3 {
[%emt 0:01:02]} Nf4 {[%emt 0:01:58]} 34. Rxf4 {[%emt 0:13:21]} gxf4 {[%emt 0:
00:00]} 35. Qd5+ {[%emt 0:00:07]} Kh8 {[%emt 0:00:57]} 36. Qh5+ {[%emt 0:00:09]
} Qxh5 {[%emt 0:00:16]} 37. gxh5 {[%emt 0:00:03]} f5 {[%emt 0:02:47]} 38. Nd5 {
[%emt 0:02:17]} Ne6 {[%emt 0:00:23]} 39. Bxa5 {[%emt 0:07:49]} Bd4+ {[%emt 0:
00:00]} 40. Kg2 {[%emt 0:04:00]} Kh7 {[%emt 0:00:24]} 41. b6 {[%emt 0:33:45]}
Kh6 {[%emt 0:31:03]} 42. b7 {[%emt 0:00:39]} Ba7 {[%emt 0:00:09]} 43. Bc7 {
[%emt 0:00:36]} Nxc7 {[%emt 0:00:48]} 44. Nxc7 {[%emt 0:00:12]} Kxh5 {[%emt 0:
00:00]} 45. Nd5 {[%emt 0:02:36]} Kg4 {[%emt 0:00:34]} 46. Nf6+ {[%emt 0:00:19]}
Kg5 {[%emt 0:00:14]} 47. Nd7 {[%emt 0:00:10]} Kg4 {[%emt 0:00:50]} 48. Ne5+ {
[%emt 0:00:33]} Kg5 {[%emt 0:00:32]} 49. Nc6 {[%emt 0:01:27]} Kg4 {[%emt 0:00:
00]} 50. Nxa7 {[%emt 0:00:17]} 1-0

[Event "44th Chess Olympiad Open 2022"]
[Site "Chennai"]
[Date "2022.08.08"]
[Round "10.53"]
[White "Chimthere, Alfred Charles"]
[Black "Kabwe Timothy"]
[Result "1/2-1/2"]
[WhiteElo "2035"]
[BlackElo "2248"]
[Annotator "NA RC"]
[PlyCount "62"]
[EventDate "2022.??.??"]
[TimeControl "60"]

1. d4 {[%emt 0:00:05]} e6 {[%emt 0:00:30]} 2. c4 {[%emt 0:00:10]} d5 {[%emt 0:
00:00]} 3. Nf3 {[%emt 0:00:30]} c6 {[%emt 0:00:28]} 4. e3 {[%emt 0:00:44]} f5 {
[%emt 0:00:52]} 5. Be2 {[%emt 0:01:31]} Nf6 {[%emt 0:01:52]} 6. O-O {[%emt 0:
00:00]} Bd6 {[%emt 0:00:10]} 7. b3 {[%emt 0:01:25]} O-O {[%emt 0:01:07]} 8. Bb2
{[%emt 0:01:14]} Nbd7 {[%emt 0:00:42]} 9. Nbd2 {[%emt 0:03:09]} b6 {[%emt 0:00:
00]} 10. a3 {[%emt 0:06:42]} a5 {[%emt 0:09:11]} 11. Qc2 {[%emt 0:08:51]} Bb7 {
[%emt 0:05:28]} 12. cxd5 {[%emt 0:08:52]} cxd5 {[%emt 0:00:22]} 13. Bb5 {
[%emt 0:03:12]} Qc8 {[%emt 0:01:48]} 14. Qd3 {[%emt 0:00:49]} Ne4 {[%emt 0:00:
00]} 15. Rac1 {[%emt 0:04:46]} Qd8 {[%emt 0:06:33]} 16. g3 {[%emt 0:07:14]} Qe7
{[%emt 0:00:37]} 17. Nb1 {[%emt 0:00:38]} Rfc8 {[%emt 0:10:12]} 18. Rfd1 {
[%emt 0:00:57]} h6 {[%emt 0:04:56]} 19. Qe2 {[%emt 0:05:23]} Qd8 {[%emt 0:00:
00]} 20. Ne1 {[%emt 0:08:07]} Rxc1 {[%emt 0:01:42]} 21. Rxc1 {[%emt 0:00:15]}
Rc8 {[%emt 0:00:17]} 22. Rc2 {[%emt 0:00:25]} Rxc2 {[%emt 0:00:29]} 23. Qxc2 {
[%emt 0:01:44]} Qc8 {[%emt 0:01:49]} 24. Qxc8+ {[%emt 0:01:04]} Bxc8 {[%emt 0:
00:00]} 25. Nd3 {[%emt 0:00:20]} Kf7 {[%emt 0:00:28]} 26. Kf1 {[%emt 0:00:28]}
Ke7 {[%emt 0:00:30]} 27. Ke2 {[%emt 0:01:15]} Nb8 {[%emt 0:01:22]} 28. f3 {
[%emt 0:01:20]} Nf6 {[%emt 0:04:02]} 29. Nc3 {[%emt 0:01:08]} Bd7 {[%emt 0:00:
00]} 30. Bxd7 {[%emt 0:01:30]} Nbxd7 {[%emt 0:00:15]} 31. Nb5 {[%emt 0:00:28]}
Bb8 {[%emt 0:03:21]} 1/2-1/2

[Event "44th Chess Olympiad Open 2022"]
[Site "Chennai"]
[Date "2022.08.08"]
[Round "10.53"]
[White "Nyambalo, Joseph Xavier"]
[Black "Phiri, Richmond"]
[Result "1/2-1/2"]
[WhiteElo "1981"]
[BlackElo "2293"]
[Annotator "NA RC"]
[PlyCount "71"]
[EventDate "2022.??.??"]
[TimeControl "60"]

1. c4 {[%emt 0:00:03]} Nf6 {[%emt 0:00:10]} 2. Nc3 {[%emt 0:00:08]} c5 {
[%emt 0:00:18]} 3. g3 {[%emt 0:00:08]} e6 {[%emt 0:00:37]} 4. Nf3 {[%emt 0:00:
00]} d5 {[%emt 0:00:26]} 5. cxd5 {[%emt 0:00:11]} Nxd5 {[%emt 0:02:55]} 6. Bg2
{[%emt 0:00:18]} Be7 {[%emt 0:00:05]} 7. O-O {[%emt 0:00:09]} O-O {[%emt 0:00:
00]} 8. e4 {[%emt 0:01:13]} Nxc3 {[%emt 0:11:29]} 9. dxc3 {[%emt 0:00:07]} Nc6
{[%emt 0:00:19]} 10. Be3 {[%emt 0:00:53]} Qc7 {[%emt 0:01:21]} 11. Qc2 {
[%emt 0:00:35]} Rd8 {[%emt 0:10:54]} 12. Rfd1 {[%emt 0:05:48]} Bd7 {[%emt 0:00:
00]} 13. h4 {[%emt 0:02:34]} Be8 {[%emt 0:04:19]} 14. Qe2 {[%emt 0:06:57]} Qa5
{[%emt 0:02:35]} 15. Nd2 {[%emt 0:01:24]} Qa4 {[%emt 0:05:35]} 16. b3 {[%emt 0:
00:00]} Qa5 {[%emt 0:00:49]} 17. Rdc1 {[%emt 0:00:18]} Ne5 {[%emt 0:03:30]} 18.
Rc2 {[%emt 0:00:25]} Bb5 {[%emt 0:13:52]} 19. c4 {[%emt 0:00:18]} Bc6 {[%emt 0:
00:00]} 20. Nf1 {[%emt 0:03:59]} Nd3 {[%emt 0:06:01]} 21. Bd2 {[%emt 0:00:38]}
Qc7 {[%emt 0:06:52]} 22. Bc3 {[%emt 0:01:21]} Nb4 {[%emt 0:02:29]} 23. Qg4 {
[%emt 0:03:55]} g6 {[%emt 0:00:16]} 24. Rd2 {[%emt 0:01:21]} h5 {[%emt 0:00:32]
} 25. Rxd8+ {[%emt 0:01:21]} Rxd8 {[%emt 0:00:07]} 26. Qe2 {[%emt 0:00:10]} Be8
{[%emt 0:04:46]} 27. a3 {[%emt 0:07:48]} Nc6 {[%emt 0:00:06]} 28. Qb2 {[%emt 0:
00:00]} Nd4 {[%emt 0:02:29]} 29. Rd1 {[%emt 0:02:43]} Bf6 {[%emt 0:01:02]} 30.
Kh1 {[%emt 0:00:31]} Bc6 {[%emt 0:00:28]} 31. Ne3 {[%emt 0:00:44]} b6 {[%emt 0:
00:00]} 32. b4 {[%emt 0:03:31]} Kh7 {[%emt 0:03:16]} 33. b5 {[%emt 0:01:17]}
Bb7 {[%emt 0:00:30]} 34. Re1 {[%emt 0:04:17]} Bg7 {[%emt 0:00:56]} 35. a4 {
[%emt 0:01:12]} Qe7 {[%emt 0:02:28]} 36. a5 {[%emt 0:03:08]} 1/2-1/2

[Event "44th Chess Olympiad Open 2022"]
[Site "Chennai"]
[Date "2022.08.08"]
[Round "10.54"]
[White "Msellek, Ilyass"]
[Black "Jean Louis, Marckens"]
[Result "1-0"]
[WhiteElo "2398"]
[BlackElo "2050"]
[Annotator "RC"]
[PlyCount "47"]
[EventDate "2022.??.??"]
[TimeControl "60"]

1. e4 {[%emt 0:00:03]} c6 {[%emt 0:00:15]} 2. d4 {[%emt 0:00:04]} d5 {[%emt 0:
00:00]} 3. f3 {[%emt 0:00:05]} dxe4 {[%emt 0:00:48]} 4. fxe4 {[%emt 0:00:06]}
e5 {[%emt 0:00:36]} 5. Nf3 {[%emt 0:00:06]} exd4 {[%emt 0:01:25]} 6. Bc4 {
[%emt 0:00:11]} f6 {[%emt 0:06:35]} 7. O-O {[%emt 0:10:17]} Bg4 {[%emt 0:07:21]
} 8. h3 {[%emt 0:03:07]} Bxf3 {[%emt 0:01:36]} 9. Qxf3 {[%emt 0:00:07]} Bd6 {
[%emt 0:00:55]} 10. Qb3 {[%emt 0:02:01]} Ne7 {[%emt 0:02:30]} 11. Bf7+ {
[%emt 0:00:20]} Kd7 {[%emt 0:02:13]} 12. Nd2 {[%emt 0:02:58]} b5 {[%emt 0:00:
00]} 13. a4 {[%emt 0:01:44]} Qb6 {[%emt 0:01:11]} 14. Qe6+ {[%emt 0:00:08]} Kc7
{[%emt 0:00:31]} 15. e5 {[%emt 0:07:52]} fxe5 {[%emt 0:04:42]} 16. a5 {[%emt 0:
00:00]} Qa6 {[%emt 0:05:55]} 17. Ne4 {[%emt 0:00:12]} c5 {[%emt 0:01:30]} 18.
Bg5 {[%emt 0:00:43]} Nc8 {[%emt 0:02:30]} 19. Be8 {[%emt 0:00:49]} Be7 {
[%emt 0:02:37]} 20. Qxe5+ {[%emt 0:00:28]} Kd8 {[%emt 0:00:25]} 21. Nxc5 {
[%emt 0:01:07]} Nd7 {[%emt 0:03:38]} 22. Bxd7 {[%emt 0:01:10]} Qg6 {[%emt 0:00:
00]} 23. Ne6+ {[%emt 0:00:19]} Kxd7 {[%emt 0:00:34]} 24. Qc7+ {[%emt 0:00:05]}
1-0

[Event "44th Chess Olympiad Open 2022"]
[Site "Chennai"]
[Date "2022.08.08"]
[Round "10.54"]
[White "Choukri, Adel"]
[Black "Germinal, Kemly"]
[Result "1-0"]
[WhiteElo "2306"]
[BlackElo "1997"]
[Annotator "RC"]
[PlyCount "73"]
[EventDate "2022.??.??"]
[TimeControl "60"]

1. e4 {[%emt 0:00:03]} e5 {[%emt 0:00:10]} 2. Nf3 {[%emt 0:00:15]} Nc6 {
[%emt 0:00:25]} 3. Bb5 {[%emt 0:00:10]} Nf6 {[%emt 0:00:23]} 4. O-O {[%emt 0:
00:00]} Nxe4 {[%emt 0:00:17]} 5. Re1 {[%emt 0:00:17]} Nd6 {[%emt 0:01:00]} 6.
Nxe5 {[%emt 0:00:17]} Nxe5 {[%emt 0:02:30]} 7. Rxe5+ {[%emt 0:00:17]} Be7 {
[%emt 0:00:08]} 8. Bf1 {[%emt 0:00:06]} O-O {[%emt 0:00:15]} 9. d4 {[%emt 0:00:
00]} Bf6 {[%emt 0:01:21]} 10. Re1 {[%emt 0:00:07]} Nf5 {[%emt 0:02:26]} 11. d5
{[%emt 0:05:02]} d6 {[%emt 0:04:29]} 12. Nd2 {[%emt 0:00:56]} Bd4 {[%emt 0:00:
00]} 13. a4 {[%emt 0:11:58]} a5 {[%emt 0:04:06]} 14. c3 {[%emt 0:05:01]} Bb6 {
[%emt 0:06:35]} 15. Ne4 {[%emt 0:02:31]} Bd7 {[%emt 0:09:37]} 16. Bf4 {[%emt 0:
00:00]} Ne7 {[%emt 0:08:48]} 17. c4 {[%emt 0:06:12]} Ng6 {[%emt 0:00:36]} 18.
Bg5 {[%emt 0:01:47]} f6 {[%emt 0:00:33]} 19. Bd2 {[%emt 0:03:00]} Bf5 {[%emt 0:
00:00]} 20. Ng3 {[%emt 0:07:42]} Bd7 {[%emt 0:03:30]} 21. Qc2 {[%emt 0:06:49]}
Re8 {[%emt 0:03:00]} 22. Bd3 {[%emt 0:00:24]} Nf8 {[%emt 0:01:41]} 23. Bc3 {
[%emt 0:01:23]} c6 {[%emt 0:09:36]} 24. Rxe8 {[%emt 0:10:27]} Bxe8 {[%emt 0:00:
00]} 25. Re1 {[%emt 0:01:34]} Bg6 {[%emt 0:03:05]} 26. Nf5 {[%emt 0:01:51]}
Bxf5 {[%emt 0:01:37]} 27. Bxf5 {[%emt 0:00:01]} Bc5 {[%emt 0:03:20]} 28. Qe4 {
[%emt 0:01:50]} cxd5 {[%emt 0:01:04]} 29. Qxd5+ {[%emt 0:00:25]} Kh8 {[%emt 0:
00:00]} 30. Qf7 {[%emt 0:04:07]} Ng6 {[%emt 0:04:03]} 31. Bxg6 {[%emt 0:02:13]}
hxg6 {[%emt 0:00:46]} 32. Qxg6 {[%emt 0:01:20]} Qd7 {[%emt 0:01:47]} 33. Re4 {
[%emt 0:07:46]} Qxa4 {[%emt 0:01:53]} 34. g3 {[%emt 0:01:15]} Rf8 {[%emt 0:00:
00]} 35. Re7 {[%emt 0:01:02]} Qd1+ {[%emt 0:00:52]} 36. Kg2 {[%emt 0:00:29]}
Rg8 {[%emt 0:01:19]} 37. Bxf6 {[%emt 0:01:07]} 1-0

[Event "44th Chess Olympiad Open 2022"]
[Site "Chennai"]
[Date "2022.08.08"]
[Round "10.54"]
[White "Etienne, Angelo"]
[Black "Tissir, Mohamed"]
[Result "0-1"]
[WhiteElo "2036"]
[BlackElo "2366"]
[Annotator "RC"]
[PlyCount "96"]
[EventDate "2022.??.??"]
[TimeControl "60"]

1. d4 {[%emt 0:00:01]} d6 {[%emt 0:00:19]} 2. e4 {[%emt 0:00:35]} g6 {[%emt 0:
00:00]} 3. Be3 {[%emt 0:00:42]} Bg7 {[%emt 0:00:07]} 4. c3 {[%emt 0:00:22]} Nd7
{[%emt 0:00:37]} 5. Bc4 {[%emt 0:00:11]} Ngf6 {[%emt 0:00:40]} 6. f3 {[%emt 0:
00:00]} O-O {[%emt 0:01:21]} 7. Ne2 {[%emt 0:00:24]} e5 {[%emt 0:08:06]} 8. O-O
{[%emt 0:00:35]} Qe7 {[%emt 0:01:05]} 9. Ng3 {[%emt 0:02:58]} c6 {[%emt 0:00:
00]} 10. Re1 {[%emt 0:06:58]} h5 {[%emt 0:07:22]} 11. Bg5 {[%emt 0:01:23]} Qe8
{[%emt 0:02:39]} 12. Qd2 {[%emt 0:02:30]} Nh7 {[%emt 0:00:38]} 13. Bh6 {
[%emt 0:00:24]} Qe7 {[%emt 0:00:55]} 14. Bxg7 {[%emt 0:00:18]} Kxg7 {[%emt 0:
00:00]} 15. Na3 {[%emt 0:00:16]} h4 {[%emt 0:01:24]} 16. Nh1 {[%emt 0:00:03]}
Ndf6 {[%emt 0:00:28]} 17. Nf2 {[%emt 0:00:42]} Nh5 {[%emt 0:00:12]} 18. Nd3 {
[%emt 0:02:21]} Qf6 {[%emt 0:02:17]} 19. dxe5 {[%emt 0:02:54]} dxe5 {[%emt 0:
00:00]} 20. Qe3 {[%emt 0:01:15]} Rd8 {[%emt 0:10:02]} 21. Rad1 {[%emt 0:00:18]}
Ng5 {[%emt 0:00:21]} 22. Rf1 {[%emt 0:00:39]} Ne6 {[%emt 0:02:54]} 23. Bxe6 {
[%emt 0:01:45]} Bxe6 {[%emt 0:00:10]} 24. b3 {[%emt 0:01:07]} b6 {[%emt 0:00:
00]} 25. Rde1 {[%emt 0:09:57]} Rd7 {[%emt 0:11:05]} 26. f4 {[%emt 0:03:21]}
Rxd3 {[%emt 0:00:39]} 27. Qxd3 {[%emt 0:00:01]} Nxf4 {[%emt 0:00:07]} 28. Qc2 {
[%emt 0:16:20]} Qg5 {[%emt 0:02:03]} 29. Nc4 {[%emt 0:14:32]} Rd8 {[%emt 0:00:
00]} 30. Rd1 {[%emt 0:15:53]} Bh3 {[%emt 0:05:13]} 31. Ne3 {[%emt 0:07:22]}
Bxg2 {[%emt 0:03:21]} 32. Nxg2 {[%emt 0:00:26]} Rxd1 {[%emt 0:00:14]} 33. Rxd1
{[%emt 0:00:35]} h3 {[%emt 0:00:13]} 34. Qf2 {[%emt 0:04:08]} hxg2 {[%emt 0:00:
00]} 35. Qf3 {[%emt 0:00:23]} Qh4 {[%emt 0:01:12]} 36. h3 {[%emt 0:01:47]}
Nxh3+ {[%emt 0:02:08]} 37. Kxg2 {[%emt 0:00:17]} Ng5 {[%emt 0:00:15]} 38. Qg3 {
[%emt 0:02:30]} Qxe4+ {[%emt 0:00:11]} 39. Kf1 {[%emt 0:00:32]} Qf5+ {[%emt 0:
00:00]} 40. Qf2 {[%emt 0:00:42]} Nf3 {[%emt 0:07:23]} 41. Kg2 {[%emt 0:30:37]}
Qg4+ {[%emt 0:30:28]} 42. Kf1 {[%emt 0:00:00]} e4 {[%emt 0:00:00]} 43. Rd6 {
[%emt 0:00:00]} Qf4 {[%emt 0:00:00]} 44. Rd4 {[%emt 0:00:00]} c5 {[%emt 0:00:
00]} 45. Rd8 {[%emt 0:00:00]} e3 {[%emt 0:00:00]} 46. Qb2 {[%emt 0:00:00]} Nd4+
{[%emt 0:00:00]} 47. Kg2 {[%emt 0:00:00]} Qg4+ {[%emt 0:00:00]} 48. Kh1 {
[%emt 0:00:00]} e2 {[%emt 0:00:00]} 0-1

[Event "44th Chess Olympiad Open 2022"]
[Site "Chennai"]
[Date "2022.08.08"]
[Round "10.54"]
[White "Gabriel, Davidson"]
[Black "Zrikem, Nassim"]
[Result "1-0"]
[WhiteElo "1915"]
[BlackElo "2075"]
[Annotator "NA RC"]
[PlyCount "60"]
[EventDate "2022.??.??"]
[TimeControl "60"]

1. d4 {[%emt 0:00:06]} Nf6 {[%emt 0:00:47]} 2. c4 {[%emt 0:00:30]} e6 {[%emt 0:
00:00]} 3. Nc3 {[%emt 0:02:07]} Bb4 {[%emt 0:00:26]} 4. Qc2 {[%emt 0:00:14]} c5
{[%emt 0:01:55]} 5. dxc5 {[%emt 0:01:22]} Nc6 {[%emt 0:05:50]} 6. Nf3 {[%emt 0:
00:00]} O-O {[%emt 0:10:01]} 7. Bg5 {[%emt 0:05:36]} Bxc5 {[%emt 0:06:52]} 8.
e3 {[%emt 0:00:29]} Be7 {[%emt 0:04:53]} 9. Rd1 {[%emt 0:02:16]} Qa5 {[%emt 0:
00:00]} 10. Be2 {[%emt 0:02:02]} d5 {[%emt 0:03:19]} 11. O-O {[%emt 0:01:32]}
dxc4 {[%emt 0:13:28]} 12. Bxc4 {[%emt 0:00:23]} h6 {[%emt 0:04:56]} 13. Bh4 {
[%emt 0:00:14]} a6 {[%emt 0:01:03]} 14. Be2 {[%emt 0:05:13]} e5 {[%emt 0:09:25]
} 15. Bxf6 {[%emt 0:19:01]} Bxf6 {[%emt 0:00:48]} 16. Nd2 {[%emt 0:02:14]} Be6
{[%emt 0:10:04]} 17. Bc4 {[%emt 0:00:59]} Rfe8 {[%emt 0:08:53]} 18. Bxe6 {
[%emt 0:00:36]} Rxe6 {[%emt 0:00:03]} 19. Nc4 {[%emt 0:01:18]} Qc5 {[%emt 0:00:
00]} 20. Qe4 {[%emt 0:01:14]} b5 {[%emt 0:02:07]} 21. Na5 {[%emt 0:00:28]} Rc8
{[%emt 0:01:25]} 22. Nb3 {[%emt 0:01:31]} Qf8 {[%emt 0:01:07]} 23. Nd5 {
[%emt 0:02:03]} Bd8 {[%emt 0:00:01]} 24. Rc1 {[%emt 0:07:22]} Ne7 {[%emt 0:00:
00]} 25. Nxe7+ {[%emt 0:00:19]} Bxe7 {[%emt 0:00:01]} 26. Rxc8 {[%emt 0:04:17]}
Qxc8 {[%emt 0:00:01]} 27. Rc1 {[%emt 0:00:15]} Qd8 {[%emt 0:01:21]} 28. g3 {
[%emt 0:00:40]} g6 {[%emt 0:01:25]} 29. Qb7 {[%emt 0:00:23]} Bf8 {[%emt 0:00:
00]} 30. Rc8 {[%emt 0:00:14]} Qe7 {[%emt 0:00:00]} 1-0

[Event "44th Chess Olympiad Open 2022"]
[Site "Chennai"]
[Date "2022.08.08"]
[Round "10.55"]
[White "Chinchilla Miranda, Eugenio"]
[Black "Matoewi, Roger"]
[Result "1-0"]
[WhiteElo "2206"]
[BlackElo "2015"]
[Annotator "NA RC"]
[PlyCount "59"]
[EventDate "2022.??.??"]
[TimeControl "60"]

1. d4 {[%emt 0:00:05]} f5 {[%emt 0:00:49]} 2. Bg5 {[%emt 0:00:25]} Nf6 {
[%emt 0:00:30]} 3. Bxf6 {[%emt 0:00:11]} exf6 {[%emt 0:00:06]} 4. e3 {[%emt 0:
00:00]} d5 {[%emt 0:00:04]} 5. c4 {[%emt 0:00:46]} Bb4+ {[%emt 0:04:07]} 6. Nc3
{[%emt 0:00:09]} O-O {[%emt 0:00:30]} 7. Qb3 {[%emt 0:01:37]} Bxc3+ {[%emt 0:
00:00]} 8. bxc3 {[%emt 0:00:14]} dxc4 {[%emt 0:00:05]} 9. Bxc4+ {[%emt 0:00:27]
} Kh8 {[%emt 0:00:05]} 10. Ne2 {[%emt 0:01:12]} Nc6 {[%emt 0:01:43]} 11. Bd3 {
[%emt 0:02:10]} Qd6 {[%emt 0:01:21]} 12. Rb1 {[%emt 0:11:25]} Ne7 {[%emt 0:00:
00]} 13. O-O {[%emt 0:02:35]} b6 {[%emt 0:01:36]} 14. Qc2 {[%emt 0:05:38]} Bd7
{[%emt 0:08:45]} 15. Ng3 {[%emt 0:08:32]} g6 {[%emt 0:09:51]} 16. c4 {[%emt 0:
00:00]} Bc6 {[%emt 0:03:13]} 17. Rbc1 {[%emt 0:05:27]} Rae8 {[%emt 0:08:03]}
18. Ne2 {[%emt 0:04:12]} Ba8 {[%emt 0:05:40]} 19. Nf4 {[%emt 0:03:57]} g5 {
[%emt 0:11:28]} 20. Ne2 {[%emt 0:03:00]} Qc6 {[%emt 0:00:58]} 21. d5 {[%emt 0:
00:00]} Nxd5 {[%emt 0:07:07]} 22. cxd5 {[%emt 0:01:02]} Qxd5 {[%emt 0:00:05]}
23. f3 {[%emt 0:01:36]} Rxe3 {[%emt 0:00:26]} 24. Bxf5 {[%emt 0:01:02]} c5 {
[%emt 0:04:50]} 25. Be4 {[%emt 0:07:28]} Qe6 {[%emt 0:01:25]} 26. Qd2 {[%emt 0:
00:00]} Ra3 {[%emt 0:00:41]} 27. Nc3 {[%emt 0:00:41]} Bxe4 {[%emt 0:03:55]} 28.
fxe4 {[%emt 0:00:15]} c4 {[%emt 0:00:11]} 29. Qb2 {[%emt 0:04:14]} Ra5 {
[%emt 0:00:15]} 30. Nd5 {[%emt 0:02:37]} 1-0